[Event "*** Titled Tuesday Blitz"]
[Site "Chess.com"]
[Date "2020.11.24"]
[Round "6"]
[White "AungTZ"]
[Black "CM_rui"]
[Result "0-1"]
[WhiteElo "2126"]
[BlackElo "2376"]
[TimeControl "180+1"]
[EndTime "11:21:27 PST"]
[Termination "CM_rui won by checkmate"]

1. e4 {[%clk 0:00:07.6]} 1... e6 {[%clk 0:03:00.9]} 2. d4 {[%clk 0:00:07]} 2...
Ke7 {[%clk 0:03:01.8]} 3. Nc3 {[%clk 0:00:07.2]} 3... Nf6 {[%clk 0:03:02.7]} 4.
Bd2 {[%clk 0:00:07.4]} 4... g6 {[%clk 0:03:03.6]} 5. f3 {[%clk 0:00:07.8]} 5...
Bg7 {[%clk 0:03:04.5]} 6. Be2 {[%clk 0:00:08.3]} 6... Re8 {[%clk 0:03:03.3]} 7.
Nh3 {[%clk 0:00:09.2]} 7... Kf8 {[%clk 0:03:02.7]} 8. g4 {[%clk 0:00:10.1]} 8...
Kg8 {[%clk 0:03:02]} 9. g5 {[%clk 0:00:11]} 9... Nh5 {[%clk 0:03:02.2]} 10. Bd3
{[%clk 0:00:11.9]} 10... d6 {[%clk 0:03:02]} 11. Qe2 {[%clk 0:00:12.8]} 11...
Bxd4 {[%clk 0:03:01]} 12. O-O-O {[%clk 0:00:13.7]} 12... a6 {[%clk 0:02:59.2]}
13. f4 {[%clk 0:00:14.6]} 13... b5 {[%clk 0:02:58.3]} 14. Qg2 {[%clk 0:00:15.5]}
14... Bb7 {[%clk 0:02:52.6]} 15. Be2 {[%clk 0:00:16.4]} 15... Ng7 {[%clk
0:02:49.2]} 16. Bh5 {[%clk 0:00:17.3]} 16... Nxh5 {[%clk 0:02:48.5]} 17. Ne2
{[%clk 0:00:18.2]} 17... Bg7 {[%clk 0:02:41.2]} 18. Ng3 {[%clk 0:00:17.7]} 18...
Nxg3 {[%clk 0:02:39]} 19. Nf2 {[%clk 0:00:18.6]} 19... Ne2+ {[%clk 0:02:37.1]}
20. Kb1 {[%clk 0:00:17.1]} 20... Nd7 {[%clk 0:02:29]} 21. Qf3 {[%clk 0:00:15.4]}
21... Nd4 {[%clk 0:02:28.5]} 22. Qg2 {[%clk 0:00:16.3]} 22... Nc5 {[%clk
0:02:28.1]} 23. h4 {[%clk 0:00:15]} 23... Na4 {[%clk 0:02:24.3]} 24. h5 {[%clk
0:00:14.3]} 24... Qd7 {[%clk 0:01:38.7]} 25. Bc1 {[%clk 0:00:13.2]} 25... Qc6
{[%clk 0:01:36.9]} 26. c3 {[%clk 0:00:11.5]} 26... Nxc3+ {[%clk 0:01:33.6]} 27.
bxc3 {[%clk 0:00:10]} 27... Qxc3 {[%clk 0:01:33.6]} 28. Ng4 {[%clk 0:00:09]}
28... Nf3 {[%clk 0:01:00.5]} 29. Nf6+ {[%clk 0:00:09.9]} 29... Bxf6 {[%clk
0:01:00.5]} 30. gxf6 {[%clk 0:00:09.9]} 30... Bxe4+ {[%clk 0:01:00.2]} 31. Rd3
{[%clk 0:00:08.7]} 31... Bxd3+ {[%clk 0:00:59.7]} 32. Qc2 {[%clk 0:00:09.6]}
32... Bxc2# {[%clk 0:00:59.9]} 0-1

[Event "*** Titled Tuesday Blitz"]
[Site "Chess.com"]
[Date "2020.11.24"]
[Round "6"]
[White "louis198"]
[Black "Zkid"]
[Result "0-1"]
[WhiteElo "2547"]
[BlackElo "2799"]
[TimeControl "180+1"]
[EndTime "11:21:28 PST"]
[Termination "Zkid won by resignation"]

1. d4 {[%clk 0:03:00.9]} 1... d5 {[%clk 0:02:58.7]} 2. Bf4 {[%clk 0:03:01.4]}
2... Nf6 {[%clk 0:02:56.6]} 3. e3 {[%clk 0:03:01.7]} 3... c5 {[%clk 0:02:56.7]}
4. Nd2 {[%clk 0:03:01.1]} 4... e6 {[%clk 0:02:55.3]} 5. Ngf3 {[%clk 0:03:00.7]}
5... Bd6 {[%clk 0:02:54.6]} 6. Bg3 {[%clk 0:03:01.1]} 6... O-O {[%clk
0:02:51.7]} 7. c3 {[%clk 0:03:01.4]} 7... Qc7 {[%clk 0:02:49.5]} 8. Bd3 {[%clk
0:02:59.8]} 8... Nbd7 {[%clk 0:02:48.1]} 9. e4 {[%clk 0:02:35.3]} 9... dxe4
{[%clk 0:02:38.5]} 10. Nxe4 {[%clk 0:02:36.2]} 10... Nxe4 {[%clk 0:02:39]} 11.
Bxe4 {[%clk 0:02:36]} 11... Nf6 {[%clk 0:02:39.5]} 12. Bc2 {[%clk 0:02:36]}
12... Rd8 {[%clk 0:02:33.1]} 13. Qe2 {[%clk 0:02:27]} 13... cxd4 {[%clk
0:02:27.9]} 14. Nxd4 {[%clk 0:02:25.8]} 14... Bxg3 {[%clk 0:02:20.5]} 15. hxg3
{[%clk 0:02:26.7]} 15... e5 {[%clk 0:02:20.5]} 16. Nf5 {[%clk 0:02:21]} 16... e4
{[%clk 0:02:09.1]} 17. Ne3 {[%clk 0:01:56.4]} 17... Be6 {[%clk 0:01:58.4]} 18.
g4 {[%clk 0:01:44.2]} 18... Qf4 {[%clk 0:01:46.2]} 19. g3 {[%clk 0:01:43.5]}
19... Qg5 {[%clk 0:01:42.9]} 20. Rh4 {[%clk 0:01:42]} 20... b5 {[%clk
0:01:22.6]} 21. Bb3 {[%clk 0:01:27.1]} 21... Rd3 {[%clk 0:01:12.2]} 22. Bxe6
{[%clk 0:01:26.1]} 22... fxe6 {[%clk 0:01:13.1]} 23. Nc2 {[%clk 0:01:18.3]}
23... Rad8 {[%clk 0:00:59.7]} 24. Nd4 {[%clk 0:01:18.4]} 24... Rd6 {[%clk
0:00:53.6]} 25. Rd1 {[%clk 0:00:38.2]} 25... e5 {[%clk 0:00:45.2]} 26. Rxd3
{[%clk 0:00:20.7]} 26... exd3 {[%clk 0:00:44.1]} 27. Nf3 {[%clk 0:00:21]} 27...
Qxh4 {[%clk 0:00:32.9]} 0-1

[Event "*** Titled Tuesday Blitz"]
[Site "Chess.com"]
[Date "2020.11.24"]
[Round "6"]
[White "freshfoodcompany"]
[Black "Limelight2727"]
[Result "1-0"]
[WhiteElo "2365"]
[BlackElo "1936"]
[TimeControl "180+1"]
[EndTime "11:21:29 PST"]
[Termination "freshfoodcompany won by checkmate"]

1. d4 {[%clk 0:03:00.9]} 1... d5 {[%clk 0:02:59.1]} 2. c4 {[%clk 0:03:00]} 2...
c6 {[%clk 0:02:59.8]} 3. Nc3 {[%clk 0:02:59.7]} 3... Nf6 {[%clk 0:02:59.4]} 4.
Nf3 {[%clk 0:02:59.8]} 4... e6 {[%clk 0:02:59.9]} 5. Bg5 {[%clk 0:02:56.6]} 5...
Be7 {[%clk 0:02:59.8]} 6. e3 {[%clk 0:02:56.5]} 6... h6 {[%clk 0:02:57.4]} 7.
Bh4 {[%clk 0:02:56.3]} 7... Ne4 {[%clk 0:02:57.7]} 8. Bxe7 {[%clk 0:02:52.4]}
8... Qxe7 {[%clk 0:02:58.6]} 9. Qc2 {[%clk 0:02:51]} 9... Nxc3 {[%clk
0:02:57.6]} 10. Qxc3 {[%clk 0:02:50.3]} 10... Nd7 {[%clk 0:02:57.8]} 11. Bd3
{[%clk 0:02:50.3]} 11... dxc4 {[%clk 0:02:56.7]} 12. Bxc4 {[%clk 0:02:50.2]}
12... O-O {[%clk 0:02:53.6]} 13. O-O {[%clk 0:02:50.4]} 13... b5 {[%clk
0:02:47.6]} 14. Be2 {[%clk 0:02:48.9]} 14... Bb7 {[%clk 0:02:47.5]} 15. Nd2
{[%clk 0:02:47.3]} 15... e5 {[%clk 0:02:47]} 16. Bf3 {[%clk 0:02:41.1]} 16...
exd4 {[%clk 0:02:45.2]} 17. exd4 {[%clk 0:02:41.3]} 17... Nb6 {[%clk 0:02:44.1]}
18. Ne4 {[%clk 0:02:35.5]} 18... Na4 {[%clk 0:02:21.5]} 19. Qc2 {[%clk
0:02:31.5]} 19... c5 {[%clk 0:02:03.3]} 20. b3 {[%clk 0:02:17.4]} 20... Nb6
{[%clk 0:01:23.8]} 21. Qxc5 {[%clk 0:02:10.8]} 21... Qxc5 {[%clk 0:01:21.3]} 22.
dxc5 {[%clk 0:02:10.7]} 22... Nd5 {[%clk 0:01:21.1]} 23. Nd6 {[%clk 0:02:09.8]}
23... Bc6 {[%clk 0:01:20.3]} 24. Bxd5 {[%clk 0:02:06.7]} 24... Bxd5 {[%clk
0:01:21.2]} 25. Nxb5 {[%clk 0:02:06.2]} 25... Rfc8 {[%clk 0:01:15.9]} 26. Rac1
{[%clk 0:02:04.5]} 26... a5 {[%clk 0:01:13]} 27. Nd6 {[%clk 0:02:02.6]} 27...
Rc6 {[%clk 0:01:11.1]} 28. Rfd1 {[%clk 0:02:01.4]} 28... Be6 {[%clk 0:01:10.2]}
29. Nb5 {[%clk 0:01:54]} 29... a4 {[%clk 0:00:54.2]} 30. Nd4 {[%clk 0:01:53.2]}
30... Rc7 {[%clk 0:00:42.7]} 31. Nxe6 {[%clk 0:01:51.2]} 31... fxe6 {[%clk
0:00:43.6]} 32. b4 {[%clk 0:01:49.6]} 32... Rb8 {[%clk 0:00:41]} 33. a3 {[%clk
0:01:49.1]} 33... Kf7 {[%clk 0:00:40.6]} 34. f3 {[%clk 0:01:47.6]} 34... Ke7
{[%clk 0:00:40.7]} 35. Rd6 {[%clk 0:01:46.2]} 35... Rd7 {[%clk 0:00:35.8]} 36.
Rcd1 {[%clk 0:01:44.7]} 36... Rxd6 {[%clk 0:00:33.6]} 37. Rxd6 {[%clk
0:01:45.6]} 37... Rf8 {[%clk 0:00:32]} 38. Ra6 {[%clk 0:01:45]} 38... Rf5 {[%clk
0:00:32]} 39. Rxa4 {[%clk 0:01:45]} 39... Rd5 {[%clk 0:00:32.6]} 40. Ra7+ {[%clk
0:01:43.3]} 40... Kf6 {[%clk 0:00:32.6]} 41. c6 {[%clk 0:01:42.4]} 41... Rd1+
{[%clk 0:00:31.8]} 42. Kf2 {[%clk 0:01:42.1]} 42... Rc1 {[%clk 0:00:32.7]} 43.
b5 {[%clk 0:01:41.8]} 43... Rc2+ {[%clk 0:00:33.6]} 44. Kg3 {[%clk 0:01:41.4]}
44... g5 {[%clk 0:00:34.5]} 45. c7 {[%clk 0:01:41.3]} 45... h5 {[%clk
0:00:35.4]} 46. b6 {[%clk 0:01:38]} 46... h4+ {[%clk 0:00:36.3]} 47. Kh3 {[%clk
0:01:37.8]} 47... Kf5 {[%clk 0:00:30.3]} 48. Ra5+ {[%clk 0:01:29.7]} 48... e5
{[%clk 0:00:29.7]} 49. b7 {[%clk 0:01:20.8]} 49... Rc3 {[%clk 0:00:28]} 50.
c8=Q+ {[%clk 0:01:19.4]} 50... Rxc8 {[%clk 0:00:28.8]} 51. bxc8=Q+ {[%clk
0:01:19.5]} 51... Kf4 {[%clk 0:00:29.1]} 52. Qg4+ {[%clk 0:01:19.1]} 52... Ke3
{[%clk 0:00:30]} 53. Rxe5+ {[%clk 0:01:18.9]} 53... Kf2 {[%clk 0:00:30.9]} 54.
Qd4+ {[%clk 0:01:18.4]} 54... Kf1 {[%clk 0:00:30.6]} 55. Qd1+ {[%clk 0:01:18.3]}
55... Kf2 {[%clk 0:00:31.5]} 56. Qe1# {[%clk 0:01:18.7]} 1-0

[Event "*** Titled Tuesday Blitz"]
[Site "Chess.com"]
[Date "2020.11.24"]
[Round "6"]
[White "ZenBull"]
[Black "A-S-00"]
[Result "0-1"]
[WhiteElo "2113"]
[BlackElo "2305"]
[TimeControl "180+1"]
[EndTime "11:21:29 PST"]
[Termination "A-S-00 won by resignation"]

1. Nf3 {[%clk 0:03:00.9]} 1... Nf6 {[%clk 0:02:59.4]} 2. c4 {[%clk 0:02:56.1]}
2... g6 {[%clk 0:02:56.9]} 3. Nc3 {[%clk 0:02:56]} 3... Bg7 {[%clk 0:02:57]} 4.
e4 {[%clk 0:02:56.6]} 4... d6 {[%clk 0:02:55.6]} 5. d4 {[%clk 0:02:57]} 5... O-O
{[%clk 0:02:55.8]} 6. h3 {[%clk 0:02:57.5]} 6... Nbd7 {[%clk 0:02:56.2]} 7. Bg5
{[%clk 0:02:56.4]} 7... e5 {[%clk 0:02:55.7]} 8. d5 {[%clk 0:02:54.7]} 8... h6
{[%clk 0:02:56.2]} 9. Be3 {[%clk 0:02:54.4]} 9... Ne8 {[%clk 0:02:55]} 10. Nd2
{[%clk 0:02:44.9]} 10... f5 {[%clk 0:02:54.5]} 11. f3 {[%clk 0:02:45.3]} 11...
f4 {[%clk 0:02:34.6]} 12. Bf2 {[%clk 0:02:44.9]} 12... Nef6 {[%clk 0:02:29.8]}
13. Qc2 {[%clk 0:02:34.3]} 13... a5 {[%clk 0:02:26.4]} 14. Be2 {[%clk
0:02:28.3]} 14... Nh5 {[%clk 0:02:16.6]} 15. O-O-O {[%clk 0:02:24.1]} 15... c6
{[%clk 0:02:10.6]} 16. Kb1 {[%clk 0:02:22.6]} 16... Rb8 {[%clk 0:02:06.1]} 17.
Ka1 {[%clk 0:02:21.4]} 17... Nc5 {[%clk 0:02:05.3]} 18. Nb3 {[%clk 0:02:19.4]}
18... Na6 {[%clk 0:02:03.5]} 19. c5 {[%clk 0:02:14.1]} 19... Nb4 {[%clk
0:01:59.5]} 20. Qb1 {[%clk 0:02:08.9]} 20... dxc5 {[%clk 0:01:50.9]} 21. Bxc5
{[%clk 0:02:02.3]} 21... Re8 {[%clk 0:01:44.9]} 22. dxc6 {[%clk 0:02:00.1]}
22... Qf6 {[%clk 0:01:38.5]} 23. c7 {[%clk 0:01:55.7]} 23... Ra8 {[%clk
0:01:37.8]} 24. Bc4+ {[%clk 0:01:53.4]} 24... Be6 {[%clk 0:01:30.6]} 25. Bxe6+
{[%clk 0:01:49.1]} 25... Qxe6 {[%clk 0:01:30.4]} 26. Nd5 {[%clk 0:01:40.7]}
26... Na6 {[%clk 0:01:17.3]} 27. Bb6 {[%clk 0:01:22.2]} 27... Bf8 {[%clk
0:01:06.4]} 28. Rc1 {[%clk 0:01:17.2]} 28... Ng3 {[%clk 0:00:59.5]} 29. Rhd1
{[%clk 0:01:15.8]} 29... a4 {[%clk 0:00:47.3]} 30. Nc5 {[%clk 0:01:13.7]} 30...
Nxc5 {[%clk 0:00:43]} 31. Bxc5 {[%clk 0:01:14.6]} 31... Ne2 {[%clk 0:00:42.4]}
32. Rc2 {[%clk 0:01:08.4]} 32... Bxc5 {[%clk 0:00:40.9]} 33. Rxc5 {[%clk
0:01:05.8]} 33... Nd4 {[%clk 0:00:40.3]} 34. Rdc1 {[%clk 0:01:01.8]} 34... Nb3+
{[%clk 0:00:38.5]} 35. axb3 {[%clk 0:00:58.1]} 35... axb3+ {[%clk 0:00:38.6]}
36. Qa2 {[%clk 0:00:56.9]} 36... Rxa2+ {[%clk 0:00:38.9]} 37. Kb1 {[%clk
0:00:57.1]} 37... Ra1+ {[%clk 0:00:39.2]} 38. Kxa1 {[%clk 0:00:56.6]} 38... Qa6+
{[%clk 0:00:39.7]} 0-1

[Event "*** Titled Tuesday Blitz"]
[Site "Chess.com"]
[Date "2020.11.24"]
[Round "6"]
[White "Quiet_Desperation"]
[Black "monalize"]
[Result "1/2-1/2"]
[WhiteElo "1682"]
[BlackElo "2351"]
[TimeControl "180+1"]
[EndTime "11:21:32 PST"]
[Termination "Game drawn by repetition"]

1. e4 {[%clk 0:03:00.9]} 1... c5 {[%clk 0:02:59.4]} 2. Nf3 {[%clk 0:03:01.2]}
2... d6 {[%clk 0:02:59.7]} 3. d4 {[%clk 0:02:58.1]} 3... cxd4 {[%clk 0:03:00.6]}
4. Nxd4 {[%clk 0:02:57.1]} 4... Nf6 {[%clk 0:03:00.3]} 5. Nc3 {[%clk 0:02:50.4]}
5... a6 {[%clk 0:03:00.3]} 6. Be3 {[%clk 0:02:44.5]} 6... Ng4 {[%clk 0:02:59.4]}
7. Bc1 {[%clk 0:02:41.6]} 7... Nf6 {[%clk 0:02:57.2]} 8. Be3 {[%clk 0:02:40.6]}
8... Ng4 {[%clk 0:02:56.7]} 9. Bc1 {[%clk 0:02:40.4]} 9... Nc6 {[%clk
0:02:56.7]} 10. Be2 {[%clk 0:02:34.3]} 10... h5 {[%clk 0:02:46.7]} 11. h3 {[%clk
0:02:27.8]} 11... Nf6 {[%clk 0:02:42]} 12. Be3 {[%clk 0:02:19]} 12... e6 {[%clk
0:02:40.4]} 13. O-O {[%clk 0:02:15.2]} 13... Be7 {[%clk 0:02:38.8]} 14. Nb3
{[%clk 0:02:12.6]} 14... b5 {[%clk 0:02:37.2]} 15. a3 {[%clk 0:02:12]} 15... Bb7
{[%clk 0:02:36.6]} 16. f4 {[%clk 0:02:08]} 16... Qc7 {[%clk 0:02:33.5]} 17. f5
{[%clk 0:01:43.8]} 17... Ne5 {[%clk 0:02:30.8]} 18. fxe6 {[%clk 0:01:38.9]}
18... fxe6 {[%clk 0:02:29.8]} 19. Nd4 {[%clk 0:01:38.9]} 19... Qd7 {[%clk
0:02:24.1]} 20. Kh1 {[%clk 0:01:02.7]} 20... Rc8 {[%clk 0:02:23.5]} 21. Qd2
{[%clk 0:00:59.4]} 21... Nc4 {[%clk 0:02:20.9]} 22. Bxc4 {[%clk 0:00:59.1]}
22... Rxc4 {[%clk 0:02:20.7]} 23. Qd3 {[%clk 0:00:50.1]} 23... O-O {[%clk
0:02:18.5]} 24. Rad1 {[%clk 0:00:42.8]} 24... e5 {[%clk 0:02:17.4]} 25. Nf5
{[%clk 0:00:38.1]} 25... Nxe4 {[%clk 0:02:17.1]} 26. Nxe7+ {[%clk 0:00:28.7]}
26... Qxe7 {[%clk 0:02:16.6]} 27. Nd5 {[%clk 0:00:26.1]} 27... Rxf1+ {[%clk
0:02:06.4]} 28. Rxf1 {[%clk 0:00:23]} 28... Qe6 {[%clk 0:02:06.1]} 29. b3 {[%clk
0:00:12.3]} 29... Ng3+ {[%clk 0:02:02]} 30. Kg1 {[%clk 0:00:10.9]} 30... Nxf1
{[%clk 0:02:01.5]} 31. bxc4 {[%clk 0:00:11.1]} 31... bxc4 {[%clk 0:01:59.2]} 32.
Qxf1 {[%clk 0:00:10.9]} 32... Qxd5 {[%clk 0:01:58.6]} 33. Qf2 {[%clk 0:00:11.1]}
33... Qe4 {[%clk 0:01:57.1]} 34. Qg3 {[%clk 0:00:10.5]} 34... Kh7 {[%clk
0:01:55.7]} 35. c3 {[%clk 0:00:09.1]} 35... d5 {[%clk 0:01:54.8]} 36. h4 {[%clk
0:00:08.2]} 36... d4 {[%clk 0:01:53.6]} 37. cxd4 {[%clk 0:00:08.6]} 37... exd4
{[%clk 0:01:53]} 38. Bf4 {[%clk 0:00:09.2]} 38... c3 {[%clk 0:01:51.1]} 39. Be5
{[%clk 0:00:09.6]} 39... g6 {[%clk 0:01:46.1]} 40. Qg5 {[%clk 0:00:08.3]} 40...
Kg8 {[%clk 0:01:29.6]} 41. Qd8+ {[%clk 0:00:06.5]} 41... Kf7 {[%clk 0:01:29]}
42. Qd7+ {[%clk 0:00:06.9]} 42... Kf8 {[%clk 0:01:28.5]} 43. Qd8+ {[%clk
0:00:03.7]} 43... Kf7 {[%clk 0:01:27.6]} 44. Qd7+ {[%clk 0:00:04.1]} 44... Kf8
{[%clk 0:01:27.6]} 45. Qd8+ {[%clk 0:00:04.7]} 45... Kf7 {[%clk 0:01:27.7]}
1/2-1/2

[Event "*** Titled Tuesday Blitz"]
[Site "Chess.com"]
[Date "2020.11.24"]
[Round "6"]
[White "PLAYER_2006_M"]
[Black "serhanberat_ozdemir"]
[Result "1-0"]
[WhiteElo "2499"]
[BlackElo "2336"]
[TimeControl "180+1"]
[EndTime "11:21:34 PST"]
[Termination "PLAYER_2006_M won on time"]

1. d4 {[%clk 0:03:00.9]} 1... Nf6 {[%clk 0:02:59.7]} 2. Nc3 {[%clk 0:03:00.2]}
2... d5 {[%clk 0:02:59.1]} 3. Bf4 {[%clk 0:02:59.8]} 3... g6 {[%clk 0:02:59.2]}
4. e3 {[%clk 0:02:58.4]} 4... Bg7 {[%clk 0:02:59.7]} 5. h4 {[%clk 0:02:57.5]}
5... h5 {[%clk 0:02:59]} 6. Nf3 {[%clk 0:02:56.7]} 6... O-O {[%clk 0:02:58.5]}
7. Ne5 {[%clk 0:02:56.1]} 7... c5 {[%clk 0:02:57]} 8. dxc5 {[%clk 0:02:55.7]}
8... Qa5 {[%clk 0:02:47.6]} 9. Qd4 {[%clk 0:02:52.2]} 9... Nc6 {[%clk
0:02:43.3]} 10. Nxc6 {[%clk 0:02:51.4]} 10... bxc6 {[%clk 0:02:34]} 11. Be5
{[%clk 0:02:51.4]} 11... Bf5 {[%clk 0:02:19.9]} 12. Bd3 {[%clk 0:02:50.2]} 12...
Bxd3 {[%clk 0:02:19]} 13. cxd3 {[%clk 0:02:51.1]} 13... Ne8 {[%clk 0:02:14.1]}
14. Bxg7 {[%clk 0:02:40.6]} 14... Nxg7 {[%clk 0:02:15]} 15. g4 {[%clk
0:02:29.7]} 15... Rab8 {[%clk 0:01:50.3]} 16. gxh5 {[%clk 0:02:15.4]} 16... Nxh5
{[%clk 0:01:28.8]} 17. Qa4 {[%clk 0:01:40.9]} 17... Qxc5 {[%clk 0:01:18.4]} 18.
d4 {[%clk 0:01:38.9]} 18... Qd6 {[%clk 0:01:07.2]} 19. Rb1 {[%clk 0:01:36.3]}
19... c5 {[%clk 0:00:57.9]} 20. Qd1 {[%clk 0:01:35.4]} 20... cxd4 {[%clk
0:00:51]} 21. Qxd4 {[%clk 0:01:36.3]} 21... Rfd8 {[%clk 0:00:45.6]} 22. Rg1
{[%clk 0:01:33]} 22... e5 {[%clk 0:00:37.9]} 23. Qd1 {[%clk 0:01:27.3]} 23...
Kh7 {[%clk 0:00:24.5]} 24. Rg5 {[%clk 0:01:24.5]} 24... Qf6 {[%clk 0:00:06.3]}
25. Qg4 {[%clk 0:01:09.1]} 25... Rd6 {[%clk 0:00:02.4]} 26. Rd1 {[%clk
0:01:01.6]} 26... Rxb2 {[%clk 0:00:01.2]} 27. Nxd5 {[%clk 0:00:51.6]} 1-0

[Event "*** Titled Tuesday Blitz"]
[Site "Chess.com"]
[Date "2020.11.24"]
[Round "6"]
[White "Nemsko"]
[Black "CzechmVIII"]
[Result "1-0"]
[WhiteElo "2357"]
[BlackElo "2136"]
[TimeControl "180+1"]
[EndTime "11:21:35 PST"]
[Termination "Nemsko won on time"]

1. e4 {[%clk 0:03:00.9]} 1... c5 {[%clk 0:02:59.3]} 2. Nf3 {[%clk 0:03:00.8]}
2... d6 {[%clk 0:02:59.8]} 3. d4 {[%clk 0:03:01.2]} 3... cxd4 {[%clk 0:03:00.7]}
4. Nxd4 {[%clk 0:03:02.1]} 4... Nf6 {[%clk 0:03:01.3]} 5. Nc3 {[%clk 0:03:01.6]}
5... g6 {[%clk 0:03:01.9]} 6. Be3 {[%clk 0:03:00.2]} 6... Bg7 {[%clk 0:03:02.5]}
7. f3 {[%clk 0:02:55.5]} 7... Nc6 {[%clk 0:03:03]} 8. Qd2 {[%clk 0:02:55.7]}
8... O-O {[%clk 0:03:02.9]} 9. O-O-O {[%clk 0:02:53.7]} 9... d5 {[%clk 0:03:03]}
10. Qe1 {[%clk 0:02:53.1]} 10... e5 {[%clk 0:03:00.2]} 11. Nxc6 {[%clk
0:02:52.7]} 11... bxc6 {[%clk 0:03:01.1]} 12. exd5 {[%clk 0:02:52.9]} 12... Nxd5
{[%clk 0:03:00.8]} 13. Bc4 {[%clk 0:02:50.7]} 13... Be6 {[%clk 0:02:57]} 14. Ne4
{[%clk 0:02:50.5]} 14... Qc7 {[%clk 0:02:56.8]} 15. Bc5 {[%clk 0:02:49.6]} 15...
Rfd8 {[%clk 0:02:55.9]} 16. h4 {[%clk 0:02:32.9]} 16... h6 {[%clk 0:02:44.1]}
17. g4 {[%clk 0:02:31.6]} 17... Nf4 {[%clk 0:02:37.5]} 18. Qc3 {[%clk 0:02:16]}
18... Rab8 {[%clk 0:01:53.2]} 19. Kb1 {[%clk 0:01:47.6]} 19... f5 {[%clk
0:01:39.9]} 20. Bxe6+ {[%clk 0:01:39.7]} 20... Nxe6 {[%clk 0:01:39.4]} 21. Qc4
{[%clk 0:01:38.8]} 21... fxe4 {[%clk 0:00:22.1]} 22. Qxe6+ {[%clk 0:01:36.4]}
22... Kh7 {[%clk 0:00:22.2]} 23. Bd6 {[%clk 0:01:25.3]} 23... Qb6 {[%clk
0:00:15.8]} 24. Bxb8 {[%clk 0:01:24.9]} 24... Rxb8 {[%clk 0:00:16]} 25. b3
{[%clk 0:01:16.6]} 25... exf3 {[%clk 0:00:15.4]} 26. h5 {[%clk 0:01:11.5]} 26...
e4 {[%clk 0:00:11.4]} 27. hxg6+ {[%clk 0:01:05.2]} 27... Kh8 {[%clk 0:00:11.3]}
28. Rxh6+ {[%clk 0:00:56.3]} 28... Bxh6 {[%clk 0:00:09.6]} 29. Qf6+ {[%clk
0:00:55.7]} 29... Bg7 {[%clk 0:00:06.5]} 30. Rh1+ {[%clk 0:00:54.7]} 1-0

[Event "*** Titled Tuesday Blitz"]
[Site "Chess.com"]
[Date "2020.11.24"]
[Round "6"]
[White "tylityli"]
[Black "Harry_Rakkel"]
[Result "1/2-1/2"]
[WhiteElo "2339"]
[BlackElo "2482"]
[TimeControl "180+1"]
[EndTime "11:21:37 PST"]
[Termination "Game drawn by repetition"]

1. d4 {[%clk 0:03:00.9]} 1... Nf6 {[%clk 0:02:59]} 2. c4 {[%clk 0:02:59.6]} 2...
e6 {[%clk 0:02:59]} 3. Nc3 {[%clk 0:02:58.8]} 3... Bb4 {[%clk 0:02:59.1]} 4. e3
{[%clk 0:02:58.2]} 4... b6 {[%clk 0:02:57.5]} 5. Ne2 {[%clk 0:02:58]} 5... Bb7
{[%clk 0:02:56.6]} 6. a3 {[%clk 0:02:57.8]} 6... Be7 {[%clk 0:02:56]} 7. d5
{[%clk 0:02:56.7]} 7... O-O {[%clk 0:02:52.8]} 8. g3 {[%clk 0:02:56]} 8... exd5
{[%clk 0:02:45.2]} 9. Bg2 {[%clk 0:02:55.7]} 9... a5 {[%clk 0:02:43.5]} 10. O-O
{[%clk 0:02:53.1]} 10... Na6 {[%clk 0:02:42.6]} 11. cxd5 {[%clk 0:02:43.6]}
11... Nc5 {[%clk 0:02:41.8]} 12. e4 {[%clk 0:02:42.6]} 12... a4 {[%clk
0:02:32.8]} 13. Nd4 {[%clk 0:02:41.9]} 13... d6 {[%clk 0:02:19.3]} 14. Re1
{[%clk 0:02:31.4]} 14... Nfd7 {[%clk 0:02:18.7]} 15. f4 {[%clk 0:02:27.3]} 15...
Bf6 {[%clk 0:02:18.5]} 16. Be3 {[%clk 0:02:24.8]} 16... Re8 {[%clk 0:02:18.4]}
17. Bf2 {[%clk 0:02:23.9]} 17... Bxd4 {[%clk 0:02:16.2]} 18. Bxd4 {[%clk
0:02:20.1]} 18... Nb3 {[%clk 0:02:16.5]} 19. Rb1 {[%clk 0:02:18.9]} 19... Nxd4
{[%clk 0:02:14.8]} 20. Qxd4 {[%clk 0:02:16.9]} 20... Nc5 {[%clk 0:02:08]} 21.
Rbd1 {[%clk 0:02:12.4]} 21... Ba6 {[%clk 0:02:03.9]} 22. h4 {[%clk 0:02:01.8]}
22... Qd7 {[%clk 0:02:02.6]} 23. Kh2 {[%clk 0:02:00.3]} 23... f6 {[%clk
0:01:51.9]} 24. Bh3 {[%clk 0:01:58.9]} 24... Qe7 {[%clk 0:01:51.5]} 25. h5
{[%clk 0:01:34.4]} 25... Bc8 {[%clk 0:01:49.4]} 26. g4 {[%clk 0:01:32.1]} 26...
Bd7 {[%clk 0:01:37.9]} 27. Kg3 {[%clk 0:01:30.9]} 27... h6 {[%clk 0:01:36.2]}
28. Bg2 {[%clk 0:01:29.7]} 28... Qf7 {[%clk 0:01:35.1]} 29. Bf3 {[%clk
0:01:27.7]} 29... Re7 {[%clk 0:01:34.8]} 30. Rg1 {[%clk 0:01:23.6]} 30... Rf8
{[%clk 0:01:34.3]} 31. Kf2 {[%clk 0:01:21.5]} 31... Qe8 {[%clk 0:01:34.1]} 32.
Rde1 {[%clk 0:01:17.8]} 32... Qa8 {[%clk 0:01:33.4]} 33. Re2 {[%clk 0:01:07.9]}
33... Ref7 {[%clk 0:01:29.7]} 34. Rge1 {[%clk 0:01:07]} 34... Qa6 {[%clk
0:01:29.3]} 35. Re3 {[%clk 0:01:05.1]} 35... Nb3 {[%clk 0:01:25.5]} 36. Qd3
{[%clk 0:00:56.5]} 36... Qa5 {[%clk 0:01:24.9]} 37. Qc4 {[%clk 0:00:52.1]} 37...
Nc5 {[%clk 0:01:23.9]} 38. Qb4 {[%clk 0:00:49.6]} 38... Qa6 {[%clk 0:01:23.7]}
39. Qd4 {[%clk 0:00:48.7]} 39... Qc8 {[%clk 0:01:22.1]} 40. Rg1 {[%clk
0:00:47.3]} 40... Qa6 {[%clk 0:01:20.8]} 41. Rd1 {[%clk 0:00:44.8]} 41... Nb3
{[%clk 0:01:18.5]} 42. Qb4 {[%clk 0:00:42.4]} 42... Nc5 {[%clk 0:01:15.6]} 43.
Qd4 {[%clk 0:00:40.6]} 43... Nb3 {[%clk 0:01:12.3]} 44. Qd3 {[%clk 0:00:38.2]}
44... Qa5 {[%clk 0:01:11.2]} 45. Qd4 {[%clk 0:00:36.7]} 45... Nc5 {[%clk
0:01:10.1]} 46. Qb4 {[%clk 0:00:36.5]} 46... Qa6 {[%clk 0:01:09.2]} 47. Qd4
{[%clk 0:00:36.4]} 1/2-1/2